[Event "*** SCC Grand Prix: Titled Tuesday Blitz"]
[Site "Chess.com"]
[Date "2020.10.06"]
[Round "7"]
[White "NikolaGry"]
[Black "kuban1991"]
[Result "1-0"]
[WhiteElo "2632"]
[BlackElo "2801"]
[TimeControl "180+1"]
[EndTime "11:19:24 PDT"]
[Termination "NikolaGry won on time"]

1. d4 {[%clk 0:03:00.9]} 1... g6 {[%clk 0:02:58.8]} 2. c4 {[%clk 0:02:59.5]}
2... Bg7 {[%clk 0:02:59.7]} 3. Nc3 {[%clk 0:02:59.1]} 3... c5 {[%clk 0:03:00.2]}
4. Nf3 {[%clk 0:02:51.5]} 4... cxd4 {[%clk 0:02:58.2]} 5. Nxd4 {[%clk
0:02:51.4]} 5... Nc6 {[%clk 0:02:58.6]} 6. e3 {[%clk 0:02:49.5]} 6... Nf6 {[%clk
0:02:56.7]} 7. Be2 {[%clk 0:02:49.1]} 7... O-O {[%clk 0:02:56.3]} 8. O-O {[%clk
0:02:48.3]} 8... d5 {[%clk 0:02:53]} 9. cxd5 {[%clk 0:02:31.5]} 9... Nxd5 {[%clk
0:02:53.9]} 10. Nxd5 {[%clk 0:02:24]} 10... Qxd5 {[%clk 0:02:54.8]} 11. Bf3
{[%clk 0:02:22.3]} 11... Qc5 {[%clk 0:02:54.8]} 12. Bxc6 {[%clk 0:01:19.5]}
12... bxc6 {[%clk 0:02:55.7]} 13. Qa4 {[%clk 0:01:15.5]} 13... Rb8 {[%clk
0:02:50]} 14. Bd2 {[%clk 0:01:05.3]} 14... Rxb2 {[%clk 0:02:28.3]} 15. Rfc1
{[%clk 0:01:00.9]} 15... Qd6 {[%clk 0:02:21.5]} 16. Bc3 {[%clk 0:00:43.3]} 16...
Rb6 {[%clk 0:02:19.7]} 17. h3 {[%clk 0:00:36.4]} 17... Ra6 {[%clk 0:02:16.1]}
18. Qc4 {[%clk 0:00:34.5]} 18... Qd5 {[%clk 0:02:11.2]} 19. Bb4 {[%clk
0:00:31.8]} 19... Bf6 {[%clk 0:01:43.2]} 20. Rab1 {[%clk 0:00:27]} 20... Qxc4
{[%clk 0:01:39.8]} 21. Rxc4 {[%clk 0:00:26.6]} 21... Bd7 {[%clk 0:01:35.9]} 22.
a3 {[%clk 0:00:25.5]} 22... Rb8 {[%clk 0:01:31]} 23. Rbc1 {[%clk 0:00:24.8]}
23... Rbb6 {[%clk 0:01:29.2]} 24. Bc5 {[%clk 0:00:21.9]} 24... Rb2 {[%clk
0:01:29]} 25. Bb4 {[%clk 0:00:22]} 25... Kg7 {[%clk 0:00:36.9]} 26. Nxc6 {[%clk
0:00:21]} 26... Be6 {[%clk 0:00:29.4]} 27. Rc5 {[%clk 0:00:20.2]} 27... h5
{[%clk 0:00:20.5]} 28. Nd4 {[%clk 0:00:19.6]} 28... Bxd4 {[%clk 0:00:16.6]} 29.
exd4 {[%clk 0:00:19.8]} 29... Re2 {[%clk 0:00:15.4]} 30. d5 {[%clk 0:00:19.3]}
30... Bf5 {[%clk 0:00:13.4]} 31. Rc7 {[%clk 0:00:19]} 31... Kf6 {[%clk
0:00:10.7]} 32. R1c6+ {[%clk 0:00:16.8]} 32... Rxc6 {[%clk 0:00:10.6]} 33. Rxc6+
{[%clk 0:00:17]} 33... e6 {[%clk 0:00:09.4]} 34. d6 {[%clk 0:00:16.7]} 34... Rb2
{[%clk 0:00:06.8]} 35. Bc3+ {[%clk 0:00:15.9]} 1-0

[Event "*** SCC Grand Prix: Titled Tuesday Blitz"]
[Site "Chess.com"]
[Date "2020.10.06"]
[Round "7"]
[White "Korchmar_Vasiliy"]
[Black "Abdimalik_Abdisalimov"]
[Result "0-1"]
[WhiteElo "2575"]
[BlackElo "2748"]
[TimeControl "180+1"]
[EndTime "11:19:24 PDT"]
[Termination "Abdimalik_Abdisalimov won by resignation"]

1. d4 {[%clk 0:03:00.9]} 1... Nf6 {[%clk 0:03:00.2]} 2. Nf3 {[%clk 0:03:01.4]}
2... g6 {[%clk 0:03:00.5]} 3. Bg5 {[%clk 0:03:01.7]} 3... Bg7 {[%clk 0:03:00.5]}
4. Nbd2 {[%clk 0:03:02.3]} 4... d5 {[%clk 0:03:01.1]} 5. e3 {[%clk 0:03:02.7]}
5... O-O {[%clk 0:03:01.4]} 6. Be2 {[%clk 0:03:03.2]} 6... Nbd7 {[%clk
0:03:01.4]} 7. O-O {[%clk 0:03:02.7]} 7... Re8 {[%clk 0:03:01.7]} 8. Ne5 {[%clk
0:03:01.3]} 8... c5 {[%clk 0:02:49.5]} 9. c3 {[%clk 0:03:00]} 9... Nxe5 {[%clk
0:02:42.8]} 10. dxe5 {[%clk 0:03:00.9]} 10... Nd7 {[%clk 0:02:43.7]} 11. f4
{[%clk 0:03:00.5]} 11... f6 {[%clk 0:02:43.5]} 12. Bh4 {[%clk 0:02:49.9]} 12...
fxe5 {[%clk 0:02:42.9]} 13. f5 {[%clk 0:02:50.6]} 13... gxf5 {[%clk 0:02:42.8]}
14. Rxf5 {[%clk 0:02:44.2]} 14... Nf8 {[%clk 0:02:28.6]} 15. Rf2 {[%clk
0:02:27.7]} 15... Ng6 {[%clk 0:02:19.5]} 16. Bg3 {[%clk 0:02:26.8]} 16... e4
{[%clk 0:02:08.2]} 17. Qb3 {[%clk 0:02:03.4]} 17... c4 {[%clk 0:01:55]} 18. Qa3
{[%clk 0:02:03.3]} 18... Bd7 {[%clk 0:01:49.5]} 19. h4 {[%clk 0:01:14.9]} 19...
Qb6 {[%clk 0:01:43.9]} 20. h5 {[%clk 0:01:14.2]} 20... Ne5 {[%clk 0:01:43.7]}
21. h6 {[%clk 0:01:08.3]} 21... Qxh6 {[%clk 0:01:40.3]} 22. Bf4 {[%clk
0:01:08.6]} 22... Qg6 {[%clk 0:01:31.8]} 23. Raf1 {[%clk 0:01:07.7]} 23... Ng4
{[%clk 0:01:19.7]} 24. Bxg4 {[%clk 0:01:06.5]} 24... Bxg4 {[%clk 0:01:20.6]} 25.
Qc5 {[%clk 0:00:59.4]} 25... Qc6 {[%clk 0:01:20.2]} 26. Qa3 {[%clk 0:00:54.9]}
26... b6 {[%clk 0:00:56.2]} 27. Bg5 {[%clk 0:00:55]} 27... Qc5 {[%clk
0:00:54.3]} 28. Qa4 {[%clk 0:00:49.6]} 28... h6 {[%clk 0:00:46.8]} 29. Bf4
{[%clk 0:00:47.8]} 29... e5 {[%clk 0:00:46.5]} 30. Bh2 {[%clk 0:00:41.3]} 30...
Qxe3 {[%clk 0:00:46.5]} 31. Qc6 {[%clk 0:00:42]} 31... Be6 {[%clk 0:00:39.1]}
32. Kh1 {[%clk 0:00:40]} 32... Qc5 {[%clk 0:00:39]} 33. Qb7 {[%clk 0:00:39]}
33... Qc8 {[%clk 0:00:35.9]} 34. Rf7 {[%clk 0:00:29.6]} 34... Qxb7 {[%clk
0:00:35.1]} 35. Rxb7 {[%clk 0:00:30.5]} 35... Rf8 {[%clk 0:00:35.7]} 36. Re1
{[%clk 0:00:29.7]} 36... Rf7 {[%clk 0:00:35.4]} 37. Rxf7 {[%clk 0:00:27.6]}
37... Kxf7 {[%clk 0:00:36.3]} 38. Nf1 {[%clk 0:00:27.2]} 38... b5 {[%clk
0:00:33.9]} 39. Ng3 {[%clk 0:00:27.2]} 39... Kg6 {[%clk 0:00:34.1]} 40. Nf1
{[%clk 0:00:27]} 40... a5 {[%clk 0:00:32.4]} 41. Ne3 {[%clk 0:00:23.7]} 41... b4
{[%clk 0:00:32.5]} 42. Bg3 {[%clk 0:00:21.5]} 42... d4 {[%clk 0:00:32.2]} 43.
Ng4 {[%clk 0:00:17.4]} 43... Bxg4 {[%clk 0:00:31.9]} 44. Re2 {[%clk 0:00:18.3]}
44... Bxe2 {[%clk 0:00:31.7]} 45. Bf4 {[%clk 0:00:19.2]} 45... exf4 {[%clk
0:00:31.7]} 46. g3 {[%clk 0:00:20.1]} 46... f3 {[%clk 0:00:31.6]} 0-1

[Event "*** SCC Grand Prix: Titled Tuesday Blitz"]
[Site "Chess.com"]
[Date "2020.10.06"]
[Round "7"]
[White "DanielDardha2005"]
[Black "juancruzarias"]
[Result "1-0"]
[WhiteElo "2687"]
[BlackElo "2501"]
[TimeControl "180+1"]
[EndTime "11:19:26 PDT"]
[Termination "DanielDardha2005 won by resignation"]

1. d4 {[%clk 0:03:00.9]} 1... Nf6 {[%clk 0:02:59.2]} 2. c4 {[%clk 0:03:01.1]}
2... c5 {[%clk 0:02:59.8]} 3. d5 {[%clk 0:03:00.6]} 3... e5 {[%clk 0:03:00.2]}
4. Nc3 {[%clk 0:02:58.6]} 4... d6 {[%clk 0:03:00.8]} 5. e4 {[%clk 0:02:53.7]}
5... Nbd7 {[%clk 0:03:01.3]} 6. g3 {[%clk 0:02:53.4]} 6... Be7 {[%clk
0:03:01.8]} 7. Bg2 {[%clk 0:02:53.4]} 7... O-O {[%clk 0:03:02.4]} 8. Nf3 {[%clk
0:02:52.4]} 8... Ne8 {[%clk 0:03:03]} 9. O-O {[%clk 0:02:52.4]} 9... Nc7 {[%clk
0:03:03.6]} 10. Ne1 {[%clk 0:02:51.5]} 10... Rb8 {[%clk 0:03:04.1]} 11. a4
{[%clk 0:02:44.5]} 11... b6 {[%clk 0:03:04.4]} 12. f4 {[%clk 0:02:42.6]} 12...
a6 {[%clk 0:03:04.3]} 13. Nd3 {[%clk 0:02:41]} 13... Bf6 {[%clk 0:03:04.7]} 14.
f5 {[%clk 0:02:37.5]} 14... Bg5 {[%clk 0:02:53.3]} 15. h4 {[%clk 0:02:35.5]}
15... Bxc1 {[%clk 0:02:52.8]} 16. Qxc1 {[%clk 0:02:29.5]} 16... b5 {[%clk
0:02:53.7]} 17. b3 {[%clk 0:02:29.6]} 17... bxc4 {[%clk 0:02:53.1]} 18. bxc4
{[%clk 0:02:30.5]} 18... Nb6 {[%clk 0:02:45.1]} 19. a5 {[%clk 0:02:23.4]} 19...
Nd7 {[%clk 0:02:19.1]} 20. Qd2 {[%clk 0:02:07.6]} 20... Nf6 {[%clk 0:02:14.1]}
21. Bf3 {[%clk 0:02:07]} 21... Nce8 {[%clk 0:01:48.3]} 22. g4 {[%clk 0:02:04.4]}
22... Kh8 {[%clk 0:01:48.6]} 23. g5 {[%clk 0:02:04.4]} 23... Ng8 {[%clk
0:01:48.8]} 24. Kf2 {[%clk 0:02:04.2]} 24... g6 {[%clk 0:01:42.9]} 25. f6 {[%clk
0:02:00.5]} 25... Nexf6 {[%clk 0:01:43.2]} 26. gxf6 {[%clk 0:02:01.4]} 26...
Nxf6 {[%clk 0:01:44]} 27. h5 {[%clk 0:01:56.2]} 27... Ng4+ {[%clk 0:01:43.3]}
28. Bxg4 {[%clk 0:01:55.9]} 28... Bxg4 {[%clk 0:01:42.9]} 29. hxg6 {[%clk
0:01:50.7]} 29... fxg6+ {[%clk 0:01:41.4]} 30. Kg3 {[%clk 0:01:50.9]} 30... Bh5
{[%clk 0:01:36.5]} 31. Qh6 {[%clk 0:01:37.7]} 31... Qe7 {[%clk 0:01:20.7]} 32.
Rab1 {[%clk 0:01:33.7]} 32... Rg8 {[%clk 0:00:47]} 33. Na4 {[%clk 0:01:22.3]}
33... Rxb1 {[%clk 0:00:41.2]} 34. Rxb1 {[%clk 0:01:20.3]} 34... Qd7 {[%clk
0:00:41.8]} 35. Nf2 {[%clk 0:01:07.6]} 35... Qe7 {[%clk 0:00:19.5]} 36. Nh3
{[%clk 0:00:47.4]} 36... Qf7 {[%clk 0:00:18]} 37. Qe3 {[%clk 0:00:41]} 37... Rf8
{[%clk 0:00:18.2]} 38. Ng5 {[%clk 0:00:37.8]} 38... Qd7 {[%clk 0:00:18.6]} 39.
Ne6 {[%clk 0:00:32.8]} 39... Rf3+ {[%clk 0:00:11.4]} 40. Qxf3 {[%clk 0:00:32.9]}
1-0

[Event "*** SCC Grand Prix: Titled Tuesday Blitz"]
[Site "Chess.com"]
[Date "2020.10.06"]
[Round "7"]
[White "FMJoseHerrera"]
[Black "Teo2000"]
[Result "1-0"]
[WhiteElo "2551"]
[BlackElo "2409"]
[TimeControl "180+1"]
[EndTime "11:19:26 PDT"]
[Termination "FMJoseHerrera won by resignation"]

1. Nf3 {[%clk 0:02:44.9]} 1... d6 {[%clk 0:02:59.7]} 2. g3 {[%clk 0:02:41.7]}
2... Bg4 {[%clk 0:02:59.7]} 3. Bg2 {[%clk 0:02:41.9]} 3... Nd7 {[%clk
0:02:59.3]} 4. d3 {[%clk 0:02:42.2]} 4... e5 {[%clk 0:02:59.4]} 5. Nc3 {[%clk
0:02:42.6]} 5... Ngf6 {[%clk 0:02:58.6]} 6. O-O {[%clk 0:02:39.7]} 6... c6
{[%clk 0:02:56.8]} 7. Bg5 {[%clk 0:02:30.1]} 7... Be7 {[%clk 0:02:56.9]} 8. h3
{[%clk 0:02:23.3]} 8... Bh5 {[%clk 0:02:56.6]} 9. e4 {[%clk 0:02:19]} 9... Qc7
{[%clk 0:02:55.4]} 10. Qd2 {[%clk 0:02:17.8]} 10... h6 {[%clk 0:02:51.8]} 11.
Be3 {[%clk 0:02:17.7]} 11... d5 {[%clk 0:02:44.6]} 12. exd5 {[%clk 0:01:45.2]}
12... cxd5 {[%clk 0:02:45.5]} 13. d4 {[%clk 0:01:45.8]} 13... Bxf3 {[%clk
0:02:29.8]} 14. Bxf3 {[%clk 0:01:41.3]} 14... e4 {[%clk 0:02:30.4]} 15. Bg2
{[%clk 0:01:41.6]} 15... O-O {[%clk 0:02:29.8]} 16. Rae1 {[%clk 0:01:39.2]}
16... a6 {[%clk 0:02:29.1]} 17. a3 {[%clk 0:01:38]} 17... Bd6 {[%clk 0:02:29.2]}
18. g4 {[%clk 0:01:32.2]} 18... Nb6 {[%clk 0:02:22.4]} 19. Bxh6 {[%clk
0:00:59.3]} 19... gxh6 {[%clk 0:02:21.6]} 20. Qxh6 {[%clk 0:01:00.2]} 20... Nh7
{[%clk 0:02:18.4]} 21. f4 {[%clk 0:00:56.9]} 21... Rae8 {[%clk 0:02:09.8]} 22.
f5 {[%clk 0:00:52.7]} 22... f6 {[%clk 0:02:09.3]} 23. h4 {[%clk 0:00:38.9]}
23... Qg7 {[%clk 0:02:08.7]} 24. Qg6 {[%clk 0:00:39.4]} 24... Bg3 {[%clk
0:01:58.7]} 25. Re3 {[%clk 0:00:25.9]} 25... Bxh4 {[%clk 0:01:58.1]} 26. Rh3
{[%clk 0:00:26.8]} 26... Bg5 {[%clk 0:01:56.6]} 27. Rxh7 {[%clk 0:00:25.3]}
27... Qxg6 {[%clk 0:01:50.5]} 28. fxg6 {[%clk 0:00:26.2]} 28... Be3+ {[%clk
0:01:30]} 29. Kh2 {[%clk 0:00:23.9]} 29... Bxd4 {[%clk 0:01:28]} 30. Rxb7 {[%clk
0:00:23.8]} 30... Rc8 {[%clk 0:01:04.3]} 31. Rd1 {[%clk 0:00:21]} 31... Rc7
{[%clk 0:00:43.4]} 32. Rxc7 {[%clk 0:00:17.1]} 32... Be5+ {[%clk 0:00:43.8]} 33.
Kg1 {[%clk 0:00:17.4]} 33... Bxc7 {[%clk 0:00:44.7]} 34. Nxd5 {[%clk 0:00:18]}
34... Nxd5 {[%clk 0:00:33.9]} 35. Rxd5 {[%clk 0:00:18.9]} 35... Bb6+ {[%clk
0:00:34.5]} 36. Kf1 {[%clk 0:00:18.6]} 36... e3 {[%clk 0:00:29.9]} 37. Rd7
{[%clk 0:00:18.3]} 37... e2+ {[%clk 0:00:09.9]} 38. Kxe2 {[%clk 0:00:18.1]}
38... Re8+ {[%clk 0:00:10.4]} 39. Kd2 {[%clk 0:00:18.1]} 39... Rd8 {[%clk
0:00:10]} 40. Bd5+ {[%clk 0:00:18.4]} 40... Kf8 {[%clk 0:00:08.6]} 41. g7+
{[%clk 0:00:19.3]} 41... Ke8 {[%clk 0:00:08.1]} 42. g8=Q+ {[%clk 0:00:20.2]} 1-0

[Event "*** SCC Grand Prix: Titled Tuesday Blitz"]
[Site "Chess.com"]
[Date "2020.10.06"]
[Round "7"]
[White "chessfrendz"]
[Black "ViktoriyaTarasova"]
[Result "1-0"]
[WhiteElo "2386"]
[BlackElo "2263"]
[TimeControl "180+1"]
[EndTime "11:19:27 PDT"]
[Termination "chessfrendz won by resignation"]

1. d4 {[%clk 0:03:00.9]} 1... Nf6 {[%clk 0:02:59]} 2. Nf3 {[%clk 0:02:59.9]}
2... e6 {[%clk 0:02:58.8]} 3. e3 {[%clk 0:02:55.1]} 3... b6 {[%clk 0:02:57.9]}
4. Bd3 {[%clk 0:02:53.9]} 4... Bb7 {[%clk 0:02:58]} 5. O-O {[%clk 0:02:54]} 5...
d5 {[%clk 0:02:57.7]} 6. b3 {[%clk 0:02:54.3]} 6... Bd6 {[%clk 0:02:56.4]} 7.
Bb2 {[%clk 0:02:53.6]} 7... Nbd7 {[%clk 0:02:56.6]} 8. Nbd2 {[%clk 0:02:52.2]}
8... O-O {[%clk 0:02:56.6]} 9. Ne5 {[%clk 0:02:52.1]} 9... Ne4 {[%clk
0:02:52.7]} 10. Nxd7 {[%clk 0:02:35.4]} 10... Qxd7 {[%clk 0:02:52.3]} 11. f3
{[%clk 0:02:34.2]} 11... Nxd2 {[%clk 0:02:50.2]} 12. Qxd2 {[%clk 0:02:33.4]}
12... f5 {[%clk 0:02:49.3]} 13. Qf2 {[%clk 0:02:30.8]} 13... c5 {[%clk
0:02:48.2]} 14. Rad1 {[%clk 0:02:27]} 14... Rac8 {[%clk 0:02:47.9]} 15. c4
{[%clk 0:02:24.4]} 15... cxd4 {[%clk 0:02:46.6]} 16. exd4 {[%clk 0:02:23.4]}
16... Rf6 {[%clk 0:02:36.6]} 17. Rfe1 {[%clk 0:02:18]} 17... Rh6 {[%clk
0:02:35.8]} 18. g3 {[%clk 0:02:08.7]} 18... Rf8 {[%clk 0:02:30.1]} 19. Bc1
{[%clk 0:01:54.1]} 19... Rg6 {[%clk 0:02:26.3]} 20. Kf1 {[%clk 0:01:51]} 20...
Ba6 {[%clk 0:02:09.6]} 21. Qe2 {[%clk 0:01:42.3]} 21... Rgf6 {[%clk 0:01:59.1]}
22. f4 {[%clk 0:01:40.2]} 22... Bb7 {[%clk 0:01:57.6]} 23. Bb2 {[%clk
0:01:37.1]} 23... Qc6 {[%clk 0:01:49.6]} 24. Qg2 {[%clk 0:01:30.5]} 24... Qc8
{[%clk 0:01:43.6]} 25. Qf2 {[%clk 0:01:27.5]} 25... Bb4 {[%clk 0:01:22.2]} 26.
Re2 {[%clk 0:01:27.4]} 26... dxc4 {[%clk 0:01:12.9]} 27. bxc4 {[%clk 0:01:26]}
27... Rh6 {[%clk 0:00:58.4]} 28. a3 {[%clk 0:01:24.6]} 28... Be7 {[%clk
0:00:39.8]} 29. d5 {[%clk 0:01:22.5]} 29... Bc5 {[%clk 0:00:37.4]} 30. Bd4
{[%clk 0:01:11.5]} 30... Bxd4 {[%clk 0:00:35.8]} 31. Qxd4 {[%clk 0:01:10.5]}
31... exd5 {[%clk 0:00:33.6]} 32. cxd5 {[%clk 0:01:09.8]} 32... Rd6 {[%clk
0:00:31.5]} 33. Bc4 {[%clk 0:01:01.8]} 33... Qd7 {[%clk 0:00:29.9]} 34. Re6
{[%clk 0:00:54.8]} 34... Rd8 {[%clk 0:00:23.1]} 35. Rxd6 {[%clk 0:00:51.5]}
35... Qxd6 {[%clk 0:00:23.2]} 36. Rd3 {[%clk 0:00:49.2]} 36... a6 {[%clk
0:00:22.9]} 37. Qe5 {[%clk 0:00:48.6]} 37... b5 {[%clk 0:00:21.6]} 38. Bb3
{[%clk 0:00:42]} 38... g6 {[%clk 0:00:21.9]} 39. Ke1 {[%clk 0:00:22.3]} 39...
Qc5 {[%clk 0:00:18.2]} 40. d6+ {[%clk 0:00:20.6]} 40... Kf8 {[%clk 0:00:15.5]}
41. Qxc5 {[%clk 0:00:20.5]} 1-0

[Event "*** SCC Grand Prix: Titled Tuesday Blitz"]
[Site "Chess.com"]
[Date "2020.10.06"]
[Round "7"]
[White "GustavoJuarezF"]
[Black "Vadim_Biliy"]
[Result "0-1"]
[WhiteElo "2026"]
[BlackElo "2299"]
[TimeControl "180+1"]
[EndTime "11:19:27 PDT"]
[Termination "Vadim_Biliy won on time"]

1. e4 {[%clk 0:03:00.3]} 1... d6 {[%clk 0:02:59.2]} 2. d4 {[%clk 0:02:59.1]}
2... Nf6 {[%clk 0:02:59.2]} 3. Nc3 {[%clk 0:02:56.6]} 3... g6 {[%clk 0:02:59.1]}
4. f4 {[%clk 0:02:50.8]} 4... Bg7 {[%clk 0:02:58.2]} 5. Nf3 {[%clk 0:02:50.7]}
5... O-O {[%clk 0:02:57.4]} 6. e5 {[%clk 0:02:50.2]} 6... dxe5 {[%clk
0:02:56.5]} 7. fxe5 {[%clk 0:02:50.1]} 7... Nd5 {[%clk 0:02:56.4]} 8. Bc4 {[%clk
0:02:50]} 8... c6 {[%clk 0:02:56.1]} 9. O-O {[%clk 0:02:48.4]} 9... Na6 {[%clk
0:02:55.1]} 10. Nxd5 {[%clk 0:02:37.6]} 10... cxd5 {[%clk 0:02:54]} 11. Bb3
{[%clk 0:02:37.3]} 11... Bg4 {[%clk 0:02:40.8]} 12. c3 {[%clk 0:02:35.5]} 12...
Nc7 {[%clk 0:02:38.5]} 13. h3 {[%clk 0:02:35.2]} 13... Bxf3 {[%clk 0:02:37]} 14.
Qxf3 {[%clk 0:02:34.9]} 14... f6 {[%clk 0:02:24.4]} 15. exf6 {[%clk 0:02:15.3]}
15... Rxf6 {[%clk 0:02:22.3]} 16. Qe2 {[%clk 0:02:12.4]} 16... Rxf1+ {[%clk
0:02:17.7]} 17. Qxf1 {[%clk 0:02:10]} 17... Qd7 {[%clk 0:01:59.7]} 18. Bf4
{[%clk 0:02:09.4]} 18... Rf8 {[%clk 0:01:57.9]} 19. Qc1 {[%clk 0:02:06.1]} 19...
Ne8 {[%clk 0:01:47.1]} 20. Bh6 {[%clk 0:01:46.6]} 20... Qf5 {[%clk 0:01:38]} 21.
Be3 {[%clk 0:01:27]} 21... Nd6 {[%clk 0:01:25.3]} 22. Qc2 {[%clk 0:01:17.2]}
22... e6 {[%clk 0:01:15.3]} 23. Re1 {[%clk 0:01:12.7]} 23... Ne4 {[%clk
0:01:14.2]} 24. Qd1 {[%clk 0:01:00.2]} 24... h5 {[%clk 0:01:05.3]} 25. Bc2
{[%clk 0:00:59.9]} 25... h4 {[%clk 0:00:51.1]} 26. Qg4 {[%clk 0:00:48.7]} 26...
Qxg4 {[%clk 0:00:46.9]} 27. hxg4 {[%clk 0:00:47]} 27... Nf6 {[%clk 0:00:41.2]}
28. Bg5 {[%clk 0:00:42.1]} 28... Nxg4 {[%clk 0:00:40]} 29. Bxh4 {[%clk
0:00:36.4]} 29... e5 {[%clk 0:00:36]} 30. dxe5 {[%clk 0:00:28.6]} 30... Nxe5
{[%clk 0:00:31.8]} 31. Bg3 {[%clk 0:00:26.2]} 31... Nc4 {[%clk 0:00:30.1]} 32.
Bxg6 {[%clk 0:00:17.6]} 32... Nxb2 {[%clk 0:00:29.3]} 33. Re7 {[%clk 0:00:13.9]}
33... Bxc3 {[%clk 0:00:23.8]} 34. Rxb7 {[%clk 0:00:13.7]} 34... Bd4+ {[%clk
0:00:22.3]} 35. Kh2 {[%clk 0:00:12.3]} 35... Nc4 {[%clk 0:00:21.2]} 36. Bh7+
{[%clk 0:00:09.4]} 36... Kh8 {[%clk 0:00:21.2]} 37. Bd3 {[%clk 0:00:08.7]} 37...
Ne5 {[%clk 0:00:19.1]} 38. Bc2 {[%clk 0:00:03.7]} 38... Kg8 {[%clk 0:00:16.1]}
0-1

[Event "*** SCC Grand Prix: Titled Tuesday Blitz"]
[Site "Chess.com"]
[Date "2020.10.06"]
[Round "7"]
[White "Manukyan_Artak"]
[Black "vrekhson"]
[Result "0-1"]
[WhiteElo "2293"]
[BlackElo "2214"]
[TimeControl "180+1"]
[EndTime "11:19:31 PDT"]
[Termination "vrekhson won by resignation"]

1. e4 {[%clk 0:03:00.9]} 1... c5 {[%clk 0:02:58.9]} 2. Nf3 {[%clk 0:03:00.3]}
2... a6 {[%clk 0:02:58.6]} 3. c3 {[%clk 0:03:00.2]} 3... e6 {[%clk 0:02:57.8]}
4. d4 {[%clk 0:03:00.4]} 4... d5 {[%clk 0:02:58.3]} 5. e5 {[%clk 0:03:00.5]}
5... Bd7 {[%clk 0:02:57.9]} 6. a3 {[%clk 0:03:00.3]} 6... Bb5 {[%clk 0:02:47]}
7. c4 {[%clk 0:02:50.7]} 7... dxc4 {[%clk 0:02:45.1]} 8. Nc3 {[%clk 0:02:46.2]}
8... cxd4 {[%clk 0:02:41.7]} 9. Nxd4 {[%clk 0:02:44.6]} 9... Nc6 {[%clk
0:02:39.9]} 10. Ndxb5 {[%clk 0:02:36.2]} 10... axb5 {[%clk 0:02:31]} 11. Qxd8+
{[%clk 0:02:08.4]} 11... Rxd8 {[%clk 0:02:25.8]} 12. Nxb5 {[%clk 0:02:08.3]}
12... Nxe5 {[%clk 0:02:25.9]} 13. Bf4 {[%clk 0:02:06.7]} 13... Nd3+ {[%clk
0:02:22.6]} 14. Bxd3 {[%clk 0:02:05.4]} 14... Rxd3 {[%clk 0:01:47.3]} 15. Rd1
{[%clk 0:01:59.1]} 15... Rxd1+ {[%clk 0:01:33.9]} 16. Kxd1 {[%clk 0:01:58.7]}
16... Nf6 {[%clk 0:01:28.5]} 17. Kc2 {[%clk 0:01:58.1]} 17... Nd5 {[%clk
0:01:28.3]} 18. Be3 {[%clk 0:01:37.7]} 18... Nxe3+ {[%clk 0:01:25.6]} 19. fxe3
{[%clk 0:01:37.5]} 19... Bc5 {[%clk 0:01:26.4]} 20. e4 {[%clk 0:01:29.6]} 20...
Ke7 {[%clk 0:01:24.1]} 21. Rd1 {[%clk 0:01:29.2]} 21... Rc8 {[%clk 0:01:22.5]}
22. a4 {[%clk 0:01:14.3]} 22... Bb6 {[%clk 0:01:12.9]} 23. h3 {[%clk 0:00:55.3]}
23... Rc6 {[%clk 0:01:04.2]} 24. e5 {[%clk 0:00:48.9]} 24... f6 {[%clk
0:01:03.2]} 25. exf6+ {[%clk 0:00:48.4]} 25... gxf6 {[%clk 0:01:03.4]} 26. Re1
{[%clk 0:00:41.4]} 26... e5 {[%clk 0:01:02.5]} 27. Re4 {[%clk 0:00:41.3]} 27...
Ba5 {[%clk 0:00:53.9]} 28. Na3 {[%clk 0:00:38.7]} 28... Ke6 {[%clk 0:00:47.4]}
29. Rxc4 {[%clk 0:00:37.8]} 29... Kd5 {[%clk 0:00:41.1]} 30. Rxc6 {[%clk
0:00:37.1]} 30... Kxc6 {[%clk 0:00:42]} 31. Nc4 {[%clk 0:00:34.6]} 31... Be1
{[%clk 0:00:39.3]} 32. Ne3 {[%clk 0:00:20.8]} 32... Kc5 {[%clk 0:00:34.5]} 33.
Kd3 {[%clk 0:00:18.9]} 33... Bf2 {[%clk 0:00:25.1]} 34. Ng4 {[%clk 0:00:18.3]}
34... Bh4 {[%clk 0:00:25.3]} 35. b3 {[%clk 0:00:16.5]} 35... Kd5 {[%clk
0:00:21.8]} 36. Ne3+ {[%clk 0:00:15.9]} 36... Kc5 {[%clk 0:00:21.3]} 37. Nf5
{[%clk 0:00:16]} 37... Bg5 {[%clk 0:00:20.6]} 38. Kc3 {[%clk 0:00:15]} 38... e4
{[%clk 0:00:19.9]} 39. b4+ {[%clk 0:00:15.3]} 39... Kd5 {[%clk 0:00:19.9]} 40.
Ne7+ {[%clk 0:00:14.7]} 40... Ke5 {[%clk 0:00:19.3]} 41. g4 {[%clk 0:00:14.8]}
41... Kf4 {[%clk 0:00:19.2]} 42. Kd2 {[%clk 0:00:13.6]} 42... Kf3+ {[%clk
0:00:19.4]} 43. Ke1 {[%clk 0:00:13.3]} 43... Bh4+ {[%clk 0:00:19.2]} 44. Kf1
{[%clk 0:00:11.8]} 44... e3 {[%clk 0:00:19.5]} 45. Nf5 {[%clk 0:00:09.8]} 45...
e2+ {[%clk 0:00:20.4]} 0-1